[Event "5th Schach960-Festival 2024"]
[Site "Berlin"]
[Date "2024.02.10"]
[Round "6.3"]
[White "Dgebuadze, Alexandre"]
[Black "Fromm, Marius"]
[Result "0-1"]
[ECO "A00"]
[WhiteElo "2441"]
[BlackElo "2435"]
[Annotator "TA"]
[PlyCount "27"]
[EventDate "2024.02.08"]
[EventType "swiss"]
[EventCountry "GER"]
[SourceTitle "playchess.com"]
[Source "ChessBase"]
[SourceQuality "1"]
[TimeControl "1500+30"]

{[%evp 9,27,-72,-25,-283,-278,-897,353,-976,344,-387,275,-1157,420,-883,362,350,450,411,467,362]} 1. g4 {[%emt 0:01:33]} e5 {[%emt 0:00:48]} 2. Nc3 {[%emt 0:01:09]} a5 {[%emt 0:01:41]} 3. a3 {[%emt 0:01:45]} c6 {[%emt 0:02:58]} 4. e3 {[%emt 0:01:17]} d5 {[%emt 0:00:51]} 5. d3 {[%emt 0:01:05]} f6 {[%emt 0:01:12]} ({Black should play} 5... Be7 $17) 6. b4 $2 {[%emt 0:09:02][%mdl 8192]} axb4 $19 {[%emt 0:00:57]} 7. axb4 {[%emt 0:00:41] [#]} (7. Nb1) 7... b5 $4 {[%emt 0:00:38][%mdl 8192] [#]} 8. f4 $4 {[%emt 0:02:01][%mdl 8192] [#]} Bd6 $4 {[%emt 0:00:42][%mdl 8192]} 9. fxe5 $4 {[%emt 0:00:26][%mdl 8192]} (9. Rxa8 $18 {[%cal Og4g5] is the narrow road to win. Black must now prevent g5!} Ne7 10. Bh3) 9... fxe5 $4 {[%emt 0:00:42][%mdl 8192] [#]} (9... Rxa1 $19 10. exd6 Qxd6) 10. h3 $4 {[%emt 0:00:26][%mdl 8192] [#]} Kd7 $4 {[%emt 0:01:27][%mdl 8192] [#]} 11. d4 $4 {[%emt 0:01:14][%mdl 8192] [#]} e4 $4 {[%emt 0:09:48][%mdl 8192]} 12. Rxa8 $18 {[%emt 0:06:15]} Ke7 {[%emt 0:00:22]} 13. g5 {[%emt 0:02:52][%cal Bg4g5,Bg5g6][%mdl 32]} h5 {[%emt 0:00:01]} 14. g6 {[%emt 0:00:00][%mdl 32768] Weighted Error Value: White=2.83/Black=2.24.  Missed win:     	White=4     	Black=2      Mistake:       	White=1     	---        Best:        	White=1     	Black=1     . Loss on time!?} 0-1

[Event "5th Schach960-Festival 2024"]
[Site "Berlin"]
[Date "2024.02.10"]
[Round "6.4"]
[White "Fridman, Daniel"]
[Black "Glek, Igor"]
[Result "1/2-1/2"]
[WhiteElo "2588"]
[BlackElo "2423"]
[Annotator "TA"]
[PlyCount "19"]
[EventDate "2024.02.08"]
[EventType "swiss"]
[EventCountry "GER"]
[SourceTitle "playchess.com"]
[Source "ChessBase"]
[SourceQuality "1"]
[TimeControl "1500+30"]

{[%evp 9,19,-509,1002,354,946,-376,914,-387,962,-329,1046,18]} 1. g3 {[%emt 0:00:08]} g6 {[%emt 0:00:19]} 2. Bg2 {[%emt 0:00:01]} Bg7 {[%emt 0:00:02]} 3. d3 {[%emt 0:00:34]} d6 {[%emt 0:00:00]} 4. Bh6 {[%emt 0:00:45]} f5 {[%emt 0:02:51]} 5. b4 {[%emt 0:01:48]} b5 $4 {[%emt 0:00:00][%mdl 8192]} (5... Bxa1 $19 6. Bc1 Bg7) 6. Bc6+ $2 {[%emt 0:12:55]} (6. Bxg7 c6 7. a4 (7. Bxh8 e5 $18)) 6... Nd7 $2 {[%emt 0:12:32]} (6... Nxc6 7. Bxg7 Bb7 8. Bxh8 e5) 7. Bg2 $4 {[%emt 0:05:48][%mdl 8192] [#]} (7. Bxg7 $18 Rb8 8. Bxh8) 7... Nb6 $4 {[%emt 0:08:54][%mdl 8192]} 8. c4 $4 {[%emt 0:04:27][%mdl 8192]} (8. Bxg7 $18 {is the narrow road to win.} Rb8 9. Bxh8) 8... Nd7 $4 {[%emt 0:00:24][%mdl 8192]} (8... Bxh6 $2 9. a4 $17) (8... Bxa1 $19 9. Be3 Bd7) 9. Nc3 $4 {[%emt 0:00:00][%mdl 8192] [#]} (9. Bxa8 Bxa1 10. Nd2 Bd4 $14) (9. Bxg7 $18 {was the only winning move.} Rb8 10. cxb5 (10. Bxh8 e5 $18)) 9... Nb6 {[%emt 0:00:33][%mdl 8192] [#]} 10. Nd5 $2 {[%emt 0:00:24] Black got outplayed after the opening.   Missed win:     	---       	Black=3      Mistake:       	---       	Black=1} 1/2-1/2

[Event "5th Schach960-Festival 2024"]
[Site "Berlin"]
[Date "2024.02.10"]
[Round "6.5"]
[White "Bluebaum, Matthias"]
[Black "Kunin, Vitaly"]
[Result "1/2-1/2"]
[WhiteElo "2655"]
[BlackElo "2521"]
[Annotator "TA"]
[PlyCount "19"]
[EventDate "2024.02.08"]
[EventType "swiss"]
[EventCountry "GER"]
[SourceTitle "playchess.com"]
[Source "ChessBase"]
[SourceQuality "1"]
[TimeControl "1500+30"]

{[%evp 9,19,-69,94,93,543,555,849,464,1026,589,1241,742]} 1. e4 {[%emt 0:00:49]} e5 {[%emt 0:00:06]} 2. Nc3 {[%emt 0:01:17]} a6 {[%emt 0:01:14]} 3. a4 {[%emt 0:01:09]} Bc5 {[%emt 0:01:59]} 4. b4 {[%emt 0:00:18]} Bd4 {[%emt 0:01:20]} 5. f3 {[%emt 0:02:50] [#]} b5 $2 {[%emt 0:00:32]} 6. axb5 {[%emt 0:01:05]} axb5 $2 {[%emt 0:01:50][%mdl 8192]} (6... Nf6 $16 {is a better chance.}) 7. Rxa8 $18 {[%emt 0:00:00] White is clearly winning.} c6 {[%emt 0:00:00][%cal Bc7c6,Bc6c5][%mdl 32]} 8. Be2 {[%emt 0:00:00]} Be3 {[%emt 0:00:00]} (8... Bb7 $142 9. Ra3 Nf6) 9. d3 {[%emt 0:06:28]} c5 {[%emt 0:02:17]} 10. Bd2 {[%emt 0:00:00][%mdl 32768] White took control after the opening.   Weighted Error Value: White=2.72/Black=2.85.  Loses game:     	---       	Black=1      Mistake:       	---       	Black=1      Inaccurate:     	White=1     	Black=2      Best:        	White=1     	---       . An unexpected result.} 1/2-1/2

[Event "5th Schach960-Festival 2024"]
[Site "Berlin"]
[Date "2024.02.10"]
[Round "6.6"]
[White "Player, Edmund C"]
[Black "Trent, Lawrence"]
[Result "0-1"]
[ECO "B00"]
[WhiteElo "2199"]
[BlackElo "2406"]
[Annotator "TA"]
[PlyCount "21"]
[EventDate "2024.02.08"]
[EventType "swiss"]
[EventCountry "GER"]
[SourceTitle "playchess.com"]
[Source "ChessBase"]
[SourceQuality "1"]
[TimeControl "1500+30"]

{[%evp 9,21,-410,522,-450,501,-467,604,-449,513,-366,449,-452,663,-512]} 1. e4 {[%emt 0:01:36]} b5 {[%emt 0:02:06]} 2. a4 {[%emt 0:02:52]} a6 {[%emt 0:00:18]} 3. axb5 {[%emt 0:08:23]} axb5 {[%emt 0:01:09]} 4. Ra2 {[%emt 0:02:21]} c5 {[%emt 0:00:31]} 5. Ne2 {[%emt 0:02:33] [#]} g6 $4 {[%emt 0:02:44][%mdl 8192] [#]} 6. h4 $4 {[%emt 0:00:00][%mdl 8192] [#]} h5 $4 {[%emt 0:18:47][%mdl 8192]} 7. c4 $4 {[%emt 0:10:40][%mdl 8192] [#]} (7. Rxa8 $18 Bb7 8. Ra1) 7... f5 $4 {[%emt 0:02:47][%mdl 8192]} 8. g4 $4 {[%emt 0:00:21][%mdl 8192]} (8. Rxa8 $18 Bb7 9. Ra7) 8... f4 $4 {[%emt 0:00:00][%mdl 8192] [#]} (8... Rxa2 $19 9. b4 cxb4 (9... fxe4 $2 10. Nec3 $19)) 9. b3 $4 {[%emt 0:00:00][%mdl 8192]} bxc4 $4 {[%emt 0:01:00][%mdl 8192]} (9... Rxa2 $19 {and all is fine.} 10. Nxf4 Qc7) 10. b4 $4 {[%emt 0:01:44][%mdl 8192] [#]} (10. Rxa8 $18 {was the only winning move.} Bb7 11. Bb2) 10... d5 $4 {[%emt 0:00:00][%mdl 8192] [#]} 11. Rg1 $4 {[%emt 0:00:00][%mdl 8192] Weighted Error Value: White=4.00/Black=4.00.  Missed win:     	White=4     	Black=5} 0-1

[Event "5th Schach960-Festival 2024"]
[Site "Berlin"]
[Date "2024.02.10"]
[Round "6.8"]
[White "Paulsen, Dirk"]
[Black "Kollars, Dmitrij"]
[Result "1-0"]
[ECO "C20"]
[WhiteElo "2293"]
[BlackElo "2632"]
[Annotator "TA"]
[PlyCount "21"]
[EventDate "2024.02.08"]
[EventType "swiss"]
[EventCountry "GER"]
[SourceTitle "playchess.com"]
[Source "ChessBase"]
[SourceQuality "1"]
[TimeControl "1500+30"]

{[%evp 9,21,-24,35,-355,0,-470,12,-802,-426,-826,-376,-508,-68,-497]} 1. e4 {[%emt 0:03:12]} e5 {[%emt 0:02:59]} 2. c3 {[%emt 0:04:32]} d6 {[%emt 0:03:09]} 3. b3 {[%emt 0:07:07]} h5 {[%emt 0:08:19]} 4. d3 {[%emt 0:00:00]} f5 {[%emt 0:02:18]} 5. Bd2 {[%emt 0:00:00]} f4 {[%emt 0:00:00] [#]} (5... Qf6 $11) 6. Be3 $2 {[%emt 0:09:13][%mdl 8192]} Qg5 $2 {[%emt 0:02:00]} ({Black should play} 6... fxe3 $19 7. fxe3 Qg5) 7. f3 {[%emt 0:00:09][%mdl 8192]} Rh7 $2 {[%emt 0:03:16] [#]} (7... fxe3 $19 8. Na3 Nf6) 8. Be2 $2 {[%emt 0:01:30][%mdl 8192]} Nd7 {[%emt 0:00:00][%cal Og5g2] Threatens to win with ...Qxg2!} 9. Kd2 {[%emt 0:01:18]} (9. Kf1 $142 fxe3 10. h4) 9... c6 {[%emt 0:00:00]} (9... fxe3+ $142 10. Kc1 Qxg2) 10. Kc2 {[%emt 0:00:00]} c5 $2 {[%emt 0:04:27]} (10... Qxg2 $19 11. Nh3 fxe3 (11... Qxh3 $2 12. Bf2 $19)) 11. c4 $2 {[%emt 0:00:00][%mdl 40960] Black took control after the opening.   Weighted Error Value: White=3.55/Black=3.19.  Loses game:     	White=3     	---        Missed win:     	---       	Black=2      Mistake:       	White=1     	---        Inaccurate:     	White=1     	Black=1     . Loss on time!?} 1-0

[Event "5th Schach960-Festival 2024"]
[Site "Berlin"]
[Date "2024.02.10"]
[Round "6.9"]
[White "Van den Doel, Erik"]
[Black "Kracht, Raphael"]
[Result "1-0"]
[ECO "A00"]
[WhiteElo "2551"]
[BlackElo "2144"]
[Annotator "TA"]
[PlyCount "20"]
[EventDate "2024.02.08"]
[EventType "swiss"]
[EventCountry "GER"]
[SourceTitle "playchess.com"]
[Source "ChessBase"]
[SourceQuality "1"]
[TimeControl "1500+30"]

{[%evp 9,20,-416,-59,-52,45,-42,532,-37,393,-109,33,-930,-72]} 1. g3 {[%emt 0:00:22]} g5 {[%emt 0:00:18]} 2. d3 {[%emt 0:01:07]} d6 {[%emt 0:01:02]} 3. Bg2 {[%emt 0:00:44]} Nc6 {[%emt 0:00:46]} 4. b4 {[%emt 0:00:16]} Bg7 {[%emt 0:02:32]} 5. e3 {[%emt 0:03:31]} g4 $2 {[%emt 0:04:32]} (5... Bxa1 $19 6. d4 Qd7 (6... Nxb4 $2 7. c3 $19)) 6. d4 {[%emt 0:02:34]} f5 {[%emt 0:03:36]} (6... Nxb4 $15 7. Ne2 c5) 7. a4 {[%emt 0:08:56]} ({White should try} 7. b5 $14 Na5 8. h3) 7... b5 $2 {[%emt 0:00:00][%mdl 8192] [#]} (7... Nxb4 $15 {stays ahead.} 8. a5 e5) 8. d5 $2 {[%emt 0:00:00]} Nf6 $2 {[%emt 0:07:39][%mdl 8192]} 9. Qd3 $2 {[%emt 0:05:37]} ({Less strong is} 9. axb5 Ne5 $16) (9. dxc6 $18 Ne4 10. Ra3) 9... Ne4 {[%emt 0:08:36] [#]} (9... Nxb4 $17 10. Qb3 a5 11. axb5 Nd7) 10. Qc3 {[%emt 0:05:44][%mdl 8192]} Kf7 $2 {[%emt 0:00:00][%mdl 32768] Weighted Error Value: White=2.54/Black=2.76.  Loses game:     	White=1     	Black=2      Missed win:     	White=2     	Black=1      Mistake:       	White=1     	Black=2     . Sensor Board Error (Ke4/e5)?} (10... Bxc3+ $19 {has better winning chances.} 11. Nxc3 Nxb4 12. Bxe4 fxe4) 1-0

[Event "5th Schach960-Festival 2024"]
[Site "Berlin"]
[Date "2024.02.10"]
[Round "6.10"]
[White "Stopa, Jacek"]
[Black "Ahlberg, Matthias"]
[Result "1-0"]
[ECO "C23"]
[WhiteElo "2344"]
[BlackElo "2067"]
[Annotator "TA"]
[PlyCount "26"]
[EventDate "2024.02.08"]
[EventType "swiss"]
[EventCountry "GER"]
[SourceTitle "playchess.com"]
[Source "ChessBase"]
[SourceQuality "1"]
[TimeControl "1500+30"]

{[%evp 9,26,-15,79,59,75,-14,79,-85,-84,-547,-113,-144,429,-612,29999,-720,-76,-571,-309]} 1. e4 {[%emt 0:00:17]} e5 {[%emt 0:00:32][%cal Be7e5,Be5d4][%mdl 32]} 2. Bc4 {[%emt 0:01:05]} b5 {[%emt 0:00:27]} 3. Bd5 {[%emt 0:00:17]} c6 {[%emt 0:00:08]} 4. Bb3 {[%emt 0:00:02]} a5 {[%emt 0:00:09]} 5. c3 {[%emt 0:00:00]} f6 {[%emt 0:00:59]} (5... a4 $11 {keeps the balance.} 6. Bc2 d5) 6. d4 {[%emt 0:01:54]} exd4 {[%emt 0:06:15]} 7. g3 {[%emt 0:06:22]} (7. cxd4 $16 {a4 is the strong threat.} a4 8. Bc2) 7... g6 {[%emt 0:17:29]} (7... a4 $11 {remains equal.} 8. Bc2 dxc3) 8. e5 $2 {[%emt 0:05:14] White is more active.} (8. Qxd4 $6 a4 9. Bd1 Na6 $11) (8. cxd4 $16 {stays on course.} a4 9. Bc2) 8... fxe5 $17 {[%emt 0:00:00] ...dxc3 would now be deadly.} 9. Bd5 $2 {[%emt 0:00:02][%mdl 8192]} h5 $2 {[%emt 0:00:00]} (9... cxd5 $19 {has better winning chances.} 10. cxd4 Bg7 11. dxe5 Ne7) 10. Be4 {[%emt 0:13:33]} Ra7 $2 {[%emt 0:02:18][%mdl 8192] [#]} (10... Qf6 $17 {aiming for ...d5.} 11. cxd4 d5 (11... exd4 12. Bg2 $17)) 11. Bg5 $4 {[%emt 0:01:09][%mdl 8192] [#]} h4 $4 {[%emt 0:01:17][%mdl 8192]} 12. b3 $4 {[%emt 0:00:00][%mdl 8192]} (12. Bxg6# {was the only winning move.}) 12... Be7 $2 {[%emt 0:00:00]} (12... Qxg5 $19 13. Nf3 Qf6 14. cxd4 Bb4+ 15. Nbd2 exd4) 13. c4 $2 {[%emt 0:01:17][%mdl 8192]} bxc4 {[%emt 0:00:00][%mdl 32768] Weighted Error Value: White=2.44/Black=2.06.  Loses game:     	White=1     	Black=1      Missed win:     	White=2     	Black=2      Mistake:       	White=2     	Black=1      OK:         	---       	Black=1      Best:        	---       	Black=1     . Loss on time!?} 1-0

[Event "5th Schach960-Festival 2024"]
[Site "Berlin"]
[Date "2024.02.11"]
[Round "7.1"]
[White "Azarov, Sergei"]
[Black "Fromm, Marius"]
[Result "1-0"]
[WhiteElo "2596"]
[BlackElo "2435"]
[Annotator "TA"]
[PlyCount "17"]
[EventDate "2024.02.08"]
[EventType "swiss"]
[EventCountry "GER"]
[SourceTitle "playchess.com"]
[Source "ChessBase"]
[SourceQuality "1"]
[TimeControl "1500+30"]

{[%evp 9,17,-1134,73,-1200,-48,-1267,-158,-1399,-44,-1304]} 1. e4 {[%emt 0:00:24]} e5 {[%emt 0:01:06]} 2. b3 {[%emt 0:02:30]} Nf6 {[%emt 0:08:26]} 3. Qh5 {[%emt 0:06:36]} Be7 {[%emt 0:06:39]} 4. c3 {[%emt 0:04:36]} Bf8 {[%emt 0:01:34]} 5. h3 {[%emt 0:00:18]} a5 $2 {[%emt 0:01:18] [#]} ({Inferior is} 5... Nxe4 6. Qxe5+ Qe7 7. Nf3 $11) (5... Nxh5 $19 6. d3 d5) 6. a4 $2 {[%emt 0:05:01][%mdl 8192]} d6 $2 {[%emt 0:07:50]} ({Stronger than} 6... Nxe4 7. Qxe5+ Qe7 8. Qxe7+ Bxe7 9. d3 $11) (6... Nxh5 $19 7. Nf3 Qf6) 7. b4 $2 {[%emt 0:01:50][%mdl 8192]} d5 $2 {[%emt 0:00:00]} (7... Nxh5 $19 {is more deadly.} 8. b5 d5) 8. h4 $2 {[%emt 0:07:40]} (8. Qxe5+ $17 Be7 9. exd5) 8... d4 $2 {[%emt 0:01:31]} (8... Nxh5 $19 9. d4 exd4 (9... dxe4 $2 10. Bb5+ Nd7 11. d5 $19)) 9. g3 $2 {[%emt 0:00:00][%mdl 40960] White did not feel at home in the position after the opening.   Weighted Error Value: White=4.00/Black=4.00.  Loses game:     	White=3     	---       . Loss on time!?} 1-0

[Event "5th Schach960-Festival 2024"]
[Site "Berlin"]
[Date "2024.02.11"]
[Round "7.2"]
[White "Trent, Lawrence"]
[Black "Fedorchuk, Sergey A."]
[Result "1/2-1/2"]
[WhiteElo "2406"]
[BlackElo "2550"]
[Annotator "TA"]
[PlyCount "15"]
[EventDate "2024.02.08"]
[EventType "swiss"]
[EventCountry "GER"]
[SourceTitle "playchess.com"]
[Source "ChessBase"]
[SourceQuality "1"]
[TimeControl "1500+30"]

{[%evp 9,15,-17,177,14,589,-86,23,19]} 1. b4 {[%emt 0:00:10]} b5 {[%emt 0:00:26]} 2. e3 {[%emt 0:00:05]} e6 {[%emt 0:01:32]} 3. Bb2 {[%emt 0:01:00]} a5 {[%emt 0:02:19]} 4. a3 {[%emt 0:00:08]} Be7 {[%emt 0:02:07]} 5. Bc3 {[%emt 0:00:36]} axb4 $2 {[%emt 0:04:53]} (5... Nf6 $11 {and Black is okay.}) 6. axb4 $2 {[%emt 0:00:04]} (6. Bxg7 $18 Bf6 7. Bxh8 Bxh8 8. c3) 6... Bf6 $2 {[%emt 0:01:02][%mdl 8192] [#]} 7. Be2 $2 {[%emt 0:05:44]} Bb7 {[%emt 0:00:00]} (7... Rxa1 $17 8. Bxa1 Bxa1) 8. Rxa8 {[%emt 0:00:00] Weighted Error Value: White=2.98/Black=2.30.  Loses game:     	---       	Black=1      Missed win:     	White=1     	---        Mistake:       	---       	Black=1      OK:         	White=1     	---} 1/2-1/2

[Event "5th Schach960-Festival 2024"]
[Site "Berlin"]
[Date "2024.02.11"]
[Round "7.5"]
[White "Kunin, Vitaly"]
[Black "Paulsen, Dirk"]
[Result "1-0"]
[ECO "A06"]
[WhiteElo "2521"]
[BlackElo "2293"]
[Annotator "TA"]
[PlyCount "22"]
[EventDate "2024.02.08"]
[EventType "swiss"]
[EventCountry "GER"]
[SourceTitle "playchess.com"]
[Source "ChessBase"]
[SourceQuality "1"]
[TimeControl "1500+30"]

{[%evp 9,22,-20,39,20,20,-1114,31,-1123,47,-1151,91,-1097,-266,-644,-72]} 1. Nf3 {[%emt 0:00:34]} d5 {[%emt 0:00:45]} 2. b3 {[%emt 0:00:49]} c5 {[%emt 0:00:17]} 3. e3 {[%emt 0:00:40]} b6 {[%emt 0:00:20]} 4. Be2 {[%emt 0:00:07]} e6 {[%emt 0:02:15]} 5. a4 {[%emt 0:02:31]} Ba6 {[%emt 0:00:14]} (5... Bd6 $11) 6. O-O {[%emt 0:01:31]} (6. Bb5+ {simplifies} Bxb5 7. axb5 Bd6 8. O-O) 6... Bxe2 {[%emt 0:00:00] [#]} 7. d4 $2 {[%emt 0:00:39][%mdl 8192]} c4 $2 {[%emt 0:02:08] [#]} ({Better is} 7... Bxd1 $19 8. Rxd1 Nc6) 8. Ba3 $2 {[%emt 0:01:36][%mdl 8192]} Be7 $2 {[%emt 0:00:01] [#]} (8... Bxd1 $19 9. Rxd1 cxb3 10. cxb3 Bxa3 11. Rxa3 Nc6) 9. Ne5 {[%emt 0:00:00][%mdl 8192]} Qc8 $2 {[%emt 0:07:26] [#]} ({Black should try} 9... Bxd1 $19 10. Rxd1 f6) 10. bxc4 $2 {[%emt 0:04:30][%mdl 8192]} Qxc4 $2 {[%emt 0:00:02]} (10... Bxd1 11. Rxd1 f6 (11... dxc4 $2 12. Nd2 $19) 12. Bxe7 Nxe7) 11. e4 $2 {[%emt 0:00:08] [#]} (11. Qd2 Qa6 (11... Qxa4 $2 {is the wrong capture.} 12. Qxe2 Qa5 13. c4 $18) 12. Rc1) 11... dxe4 $2 {[%emt 0:01:27][%mdl 32768] Black took control after the opening.   Weighted Error Value: White=3.50/Black=2.77.  Loses game:     	White=4     	---        Missed win:     	---       	Black=1      Mistake:       	White=1     	---        OK:         	---       	Black=1     . Loss on time!?} 1-0

[Event "5th Schach960-Festival 2024"]
[Site "Berlin"]
[Date "2024.02.11"]
[Round "7.6"]
[White "Glek, Igor"]
[Black "Van den Doel, Erik"]
[Result "1-0"]
[WhiteElo "2423"]
[BlackElo "2551"]
[Annotator "TA"]
[PlyCount "12"]
[EventDate "2024.02.08"]
[EventType "swiss"]
[EventCountry "GER"]
[SourceTitle "playchess.com"]
[Source "ChessBase"]
[SourceQuality "1"]
[TimeControl "1500+30"]

{[%evp 7,12,-36,385,-108,164,66,354]} 1. c4 {[%emt 0:04:42]} c5 {[%emt 0:02:26]} 2. Nf3 {[%emt 0:01:39]} Nf6 {[%emt 0:00:47]} 3. b3 {[%emt 0:02:09][%cal Bb2b3,Bb3b4][%mdl 32]} b5 {[%emt 0:04:21]} 4. b4 {[%emt 0:05:50]} Nd5 $2 {[%emt 0:07:40][%mdl 8192] [#]} 5. Qb3 $2 {[%emt 0:05:42]} (5. bxc5 bxc4 6. e4 Nf6 $16) ({Weaker is} 5. cxb5 cxb4 6. a3 e6 $14) (5. cxd5 $18 cxb4 6. e4) 5... Nf4 $2 {[%emt 0:03:37][%mdl 8192]} ({Of course not} 5... Nxb4 $6 6. cxb5 a6 7. Bb2 $11) (5... bxc4 $17 {and life is bright.} 6. Qxc4 Nxb4 7. Qxc5 N8a6) 6. h4 {[%emt 0:02:30]} (6. d4 $18) 6... Nd3+ $2 {[%emt 0:04:02][%mdl 8192] Weighted Error Value: White=2.66/Black=3.45.  Loses game:     	---       	Black=2      Mistake:       	White=1     	---} 1-0

[Event "5th Schach960-Festival 2024"]
[Site "Berlin"]
[Date "2024.02.11"]
[Round "7.7"]
[White "Stopa, Jacek"]
[Black "Shchekachev, Andrei"]
[Result "1-0"]
[ECO "A00"]
[WhiteElo "2344"]
[BlackElo "2506"]
[Annotator "TA"]
[PlyCount "20"]
[EventDate "2024.02.08"]
[EventType "swiss"]
[EventCountry "GER"]
[SourceTitle "playchess.com"]
[Source "ChessBase"]
[SourceQuality "1"]
[TimeControl "1500+30"]

{[%evp 9,20,-103,282,-37,334,-47,261,0,179,-38,443,109,443]} 1. b4 {[%emt 0:01:08]} e6 {[%emt 0:00:11]} 2. Bb2 {[%emt 0:00:21]} Nf6 {[%emt 0:01:20]} 3. e4 {[%emt 0:00:40][%cal Be2e4,Be4e5][%mdl 32]} b6 {[%emt 0:00:45]} 4. d3 {[%emt 0:00:11]} d6 {[%emt 0:00:00]} 5. e5 {[%emt 0:02:37] [#]} c5 $2 {[%emt 0:09:48][%mdl 8192]} 6. b5 $2 {[%emt 0:01:16] [#]} (6. exf6 $18 g6 7. Be2) 6... Qc7 $2 {[%emt 0:00:16][%mdl 8192]} 7. g3 $2 {[%emt 0:04:18] [#]} ({White must play} 7. exf6 $18 g6 8. Be2) 7... g5 {[%emt 0:05:45][%mdl 8192]} 8. f4 $2 {[%emt 0:01:58]} (8. exd6 $18 Qb7 9. Nf3 (9. Bxf6 Qxh1 10. Bxh8 Bb7 $18)) 8... gxf4 $2 {[%emt 0:00:02]} 9. gxf4 $2 {[%emt 0:07:54] [#]} (9. exf6 $18 {Strongly threatening Bg2.} Bb7 10. Nf3) 9... Ng4 $2 {[%emt 0:09:24][%mdl 8192]} 10. Bh3 $2 {[%emt 0:06:11]} ({Resist} 10. Qxg4 d5 11. c4 h5 $18) (10. exd6 $18 {has better winning chances.} Bxd6 11. Qxg4 (11. Bxh8 Ne3 $18)) 10... a5 $2 {[%emt 0:00:00][%mdl 8192] Weighted Error Value: White=3.05/Black=3.24.  Loses game:     	---       	Black=5      Missed win:     	White=4     	---} 1-0

[Event "5th Schach960-Festival 2024"]
[Site "Berlin"]
[Date "2024.02.11"]
[Round "7.8"]
[White "Zatonskih, Anna"]
[Black "Chatalbashev, Boris"]
[Result "1-0"]
[ECO "A40"]
[WhiteElo "2347"]
[BlackElo "2457"]
[Annotator "TA"]
[PlyCount "23"]
[EventDate "2024.02.08"]
[EventType "swiss"]
[EventCountry "GER"]
[SourceTitle "playchess.com"]
[Source "ChessBase"]
[SourceQuality "1"]
[TimeControl "1500+30"]

{[%evp 9,23,71,109,99,145,151,152,157,145,-211,-225,-787,-784,-4395,-733,-3762]} 1. d4 {[%emt 0:02:12]} b5 {[%emt 0:00:20]} 2. f3 {[%emt 0:05:10]} h5 {[%emt 0:01:56][%cal Bh7h5,Bh5h4,Bh4h3][%mdl 32]} 3. e4 {[%emt 0:00:54]} h4 {[%emt 0:00:03]} 4. Ne2 {[%emt 0:02:20]} d6 {[%emt 0:00:39][%cal Bd7d6,Bd6e5][%mdl 32]} 5. Be3 {[%emt 0:03:26]} h3 {[%emt 0:01:05]} 6. g3 {[%emt 0:03:58]} b4 {[%emt 0:00:02]} ({Black should try} 6... Nf6) 7. Nf4 {[%emt 0:05:22]} e5 {[%emt 0:07:32]} 8. dxe5 {[%emt 0:00:47] White is clearly better.} dxe5 {[%emt 0:00:21] [#]} 9. Ng6 $2 {[%emt 0:04:48][%mdl 8192] This costs White the game.} fxg6 {[%emt 0:16:50]} 10. Ba6 $2 {[%emt 0:00:00]} (10. Bb5+ c6 11. Bd3) 10... Qxd1+ $19 {[%emt 0:00:00]} 11. Kf2 {[%emt 0:00:30]} g5 {[%emt 0:00:00]} 12. c4 {[%emt 0:00:00][%mdl 32768] Weighted Error Value: White=2.35/Black=0.87.  Loses game:     	White=1     	---        Mistake:       	White=1     	Black=1      Inaccurate:     	White=1     	---        OK:         	White=1     	Black=1     . Loss on time!?} 1-0